fUST/lending_fUST_20250713
["ID","MTS","AMOUNT","RATE_DAILY","PERIOD"]
[371704502,1752395445926,-682.72,0.00016712,2]
[371704503,1752395445935,-460.0,0.00016712,2]
[371704504,1752395445946,-460.0,0.00016712,2]
[371704505,1752395445955,-460.0,0.00016712,2]
[371704506,1752395445965,-460.0,0.00016712,2]
[371704507,1752395445975,-503.86744091,0.00016712,2]
[371704508,1752395445984,-460.0,0.00016712,2]
[371704509,1752395445993,-707.94,0.00016712,2]
[371704510,1752395446003,-460.0,0.00016712,2]
[371704511,1752395446013,-460.0,0.00016712,2]
[371704512,1752395446023,-460.0,0.00016712,2]
[371704513,1752395446032,-460.0,0.00016712,2]
[371704514,1752395446041,-460.0,0.00016712,2]
[371704515,1752395446051,-500.0,0.00016773,2]
[371704516,1752395446061,-204.81301819,0.00016773,2]
[371704517,1752395446070,-336.55255679,0.00016773,2]
[371704518,1752395446080,-510.87483833,0.00016773,2]
[371704519,1752395446089,-500.0,0.00016773,2]
[371704520,1752395446098,-500.29509374,0.00016773,2]
[371704521,1752395446108,-157.27027721,0.00016773,2]
[371704522,1752395446118,-460.0,0.00016986,2]
[371704523,1752395446127,-460.0,0.00016986,2]
[371704524,1752395446137,-460.0,0.00016986,2]
[371704525,1752395446147,-151.0,0.00016986,2]
[371704526,1752395446157,-460.0,0.00016986,2]
[371704527,1752395446167,-151.0,0.00016986,2]
[371704528,1752395446178,-460.0,0.00016986,2]
[371704529,1752395446188,-391.070398,0.00016986,2]
[371704530,1752395446198,-391.070398,0.00016986,2]
[371704531,1752395446208,-460.0,0.00016986,2]
[371704532,1752395446218,-460.0,0.00016986,2]
[371704533,1752395446227,-460.0,0.00016986,2]
[371704534,1752395446237,-151.0,0.00016986,2]
[371704535,1752395446246,-151.0,0.00016986,2]
[371704536,1752395446255,-151.0,0.00016986,2]
[371704537,1752395446266,-460.0,0.00016986,2]
[371704538,1752395446275,-245.0,0.00016986,2]
[371704539,1752395446284,-460.0,0.00016986,2]
[371704540,1752395446294,-460.0,0.00016986,2]
[371704541,1752395446304,-460.0,0.00016986,2]
[371704542,1752395446314,-460.0,0.00016986,2]
[371704543,1752395446326,-460.0,0.00016986,2]
[371704544,1752395446336,-460.0,0.00016986,2]
[371704545,1752395446346,-460.0,0.00016986,2]
[371704546,1752395446355,-460.0,0.00016986,2]
[371704547,1752395446365,-460.0,0.00016986,2]
[371704548,1752395446375,-460.0,0.00016986,2]
[371704549,1752395446384,-460.0,0.00016986,2]
[371704550,1752395446394,-460.0,0.00016986,2]
[371704551,1752395446404,-460.0,0.00016986,2]
[371704552,1752395446414,-197.12501723,0.00016986,2]
[371704553,1752395446423,-460.0,0.00016986,2]
[371704554,1752395446433,-460.0,0.00016986,2]
[371704555,1752395446443,-460.0,0.00016986,2]
[371704557,1752395446452,-460.0,0.00016986,2]
[371704558,1752395446462,-460.0,0.00016986,2]
[371704560,1752395446471,-460.0,0.00016986,2]
[371704561,1752395446480,-460.0,0.00016986,2]
[371704562,1752395446491,-460.0,0.00016986,2]
[371704563,1752395446503,-460.0,0.00016986,2]
[371704564,1752395446513,-460.0,0.00016986,2]
[371704565,1752395446522,-460.0,0.00016986,2]
[371704566,1752395446532,-460.0,0.00016986,2]
[371704567,1752395446543,-460.0,0.00016986,2]
[371704568,1752395446552,-323.23298494,0.00016986,2]
[371704569,1752395446562,-460.0,0.00016986,2]
[371704570,1752395446572,-460.0,0.00016986,2]
[371704571,1752395446582,-460.0,0.00016986,2]
[371704572,1752395446591,-460.0,0.00016986,2]
[371704573,1752395446601,-460.0,0.00016986,2]
[371704574,1752395446610,-460.0,0.00016986,2]
[371704575,1752395446619,-460.0,0.00016986,2]
[371704576,1752395446629,-460.0,0.00016986,2]
[371704577,1752395446638,-460.0,0.00016986,2]
[371704578,1752395446647,-460.0,0.00016986,2]
[371704579,1752395446657,-460.0,0.00016986,2]
[371704580,1752395446668,-460.0,0.00016986,2]
[371704581,1752395446678,-460.0,0.00016986,2]
[371704582,1752395446688,-460.0,0.00016986,2]
[371704583,1752395446697,-460.0,0.00016986,2]
[371704584,1752395446707,-573.53,0.00016986,2]
[371704585,1752395446716,-460.0,0.00016986,2]
[371704586,1752395446726,-460.0,0.00016986,2]
[371704587,1752395446736,-460.0,0.00016986,2]
[371704588,1752395446745,-460.0,0.00016986,2]
[371704589,1752395446754,-460.0,0.00016986,2]
[371704590,1752395446764,-460.0,0.00016986,2]
[371704591,1752395446774,-460.0,0.00016986,2]
[371704592,1752395446784,-460.0,0.00016986,2]
[371704593,1752395446793,-460.0,0.00016986,2]
[371704594,1752395446804,-460.0,0.00016986,2]
[371704595,1752395446814,-460.0,0.00016986,2]
[371704596,1752395446823,-460.0,0.00016986,2]
[371704597,1752395446833,-460.0,0.00016986,2]
[371704598,1752395446842,-460.0,0.00016986,2]
[371704599,1752395446851,-481.49,0.00016986,2]
[371704600,1752395446860,-303.12345167,0.00016986,2]
[371704601,1752395446870,-460.0,0.00016986,2]
[371704602,1752395446880,-550.9,0.00016986,2]
[371704603,1752395446889,-460.0,0.00016986,2]
[371704604,1752395446900,-460.0,0.00016986,2]
[371704605,1752395446910,-517.48,0.00016986,2]
[371704606,1752395446920,-460.0,0.00016986,2]
[371704607,1752395446931,-469.83,0.00016986,2]
[371704608,1752395446940,-460.0,0.00016986,2]
[371704609,1752395446951,-460.0,0.00016986,2]
[371704610,1752395446960,-460.0,0.00016986,2]
[371704611,1752395446970,-460.0,0.00016986,2]
[371704612,1752395446979,-510.43,0.00016986,2]
[371704614,1752395446990,-1834.23,0.00016986,2]
[371704615,1752395446999,-549.51,0.00016986,2]
[371704616,1752395447008,-460.0,0.00016986,2]
[371704617,1752395447018,-460.0,0.00016986,2]
[371704618,1752395447028,-460.0,0.00016986,2]
[371704619,1752395447037,-460.0,0.00016986,2]
[371704620,1752395447047,-460.0,0.00016986,2]
[371704621,1752395447057,-2012.8,0.00016986,2]
[371704622,1752395447067,-460.0,0.00016986,2]
[371704623,1752395447077,-460.0,0.00016986,2]
[371704624,1752395447087,-358.87034863,0.00016986,2]
[371704625,1752395447097,-460.0,0.00016986,2]
[371704626,1752395447107,-460.0,0.00016986,2]
[371704627,1752395447116,-600.18,0.00016986,2]
[371704628,1752395447126,-460.0,0.00016986,2]
[371704629,1752395447135,-606.6,0.00016986,2]
[371704630,1752395447145,-432.39226932,0.00016986,2]
[371704631,1752395447154,-460.0,0.00016986,2]
[371704632,1752395447164,-460.0,0.00016986,2]
[371704633,1752395447173,-792.28,0.00016986,2]
[371704634,1752395447183,-1429.18,0.00016986,2]
[371704635,1752395447193,-460.0,0.00016986,2]
[371704636,1752395447203,-1422.74,0.00016986,2]
[371704637,1752395447213,-460.0,0.00016986,2]
[371704638,1752395447222,-460.0,0.00016986,2]
[371704639,1752395447232,-3939.41,0.00016986,2]
[371704640,1752395447242,-460.0,0.00016986,2]
[371704641,1752395447251,-460.0,0.00016986,2]
[371704642,1752395447262,-460.0,0.00016986,2]
[371704643,1752395447370,-567.8,0.00016986,2]
[371704644,1752395447380,-460.0,0.00016986,2]
[371704645,1752395447391,-460.0,0.00016986,2]
[371704646,1752395447400,-460.0,0.00016986,2]
[371704647,1752395447410,-1190.47,0.00016986,2]
[371704648,1752395447420,-460.0,0.00016986,2]
[371704649,1752395447431,-460.0,0.00016986,2]
[371704650,1752395447440,-460.0,0.00016986,2]
[371704651,1752395447450,-735.13,0.00016986,2]
[371704652,1752395447460,-927.31,0.00016986,2]
[371704653,1752395447469,-1547.79,0.00016986,2]
[371704654,1752395447479,-460.0,0.00016986,2]
[371704655,1752395447488,-363.03,0.00016986,2]
[371704656,1752395447501,-227.09,0.00016986,2]
[371704657,1752395447511,-907.51,0.00016986,2]
[371704658,1752395447521,-460.0,0.00016986,2]
[371704659,1752395447530,-529.16,0.00016986,2]
[371704660,1752395447544,-460.0,0.00016986,2]
[371704661,1752395447555,-219.44,0.00016986,2]
[371704662,1752395447564,-460.0,0.00016986,2]
[371704663,1752395447575,-3615.51,0.00016986,2]
[371704664,1752395447588,-2635.83,0.00016986,2]
[371704665,1752395447598,-162.39,0.00016986,2]
[371704666,1752395447608,-460.0,0.00016986,2]
[371704667,1752395447618,-3553.96,0.00016986,2]
[371704668,1752395447627,-182.97,0.00016986,2]
[371704669,1752395447637,-624.12,0.00016986,2]
[371704670,1752395447647,-395.5,0.00016986,2]
[371704671,1752395447657,-460.0,0.00016986,2]
[371704672,1752395447666,-1179.8,0.00016986,2]
[371704673,1752395447677,-460.0,0.00016986,2]
[371704674,1752395447686,-460.0,0.00016986,2]
[371704675,1752395447696,-1700.57,0.00016986,2]
[371704676,1752395447706,-2189.03,0.00016986,2]
[371704677,1752395447715,-460.0,0.00016986,2]
[371704678,1752395447725,-460.0,0.00016986,2]
[371704679,1752395447734,-1056.17,0.00016986,2]
[371704680,1752395447744,-682.72,0.00016986,2]
[371704681,1752395447754,-460.0,0.00016986,2]
[371704682,1752395447764,-707.94,0.00016986,2]
[371704683,1752395447773,-460.0,0.00016986,2]
[371704684,1752395447783,-460.0,0.00016986,2]
[371704685,1752395447792,-460.0,0.00016986,2]
[371704686,1752395447802,-460.0,0.00016986,2]
[371704687,1752395447812,-151.0,0.00017042,2]
[371704688,1752395447821,-264.509494,0.00017042,2]
[371704689,1752395447831,-8063.17852149,0.000171,2]
[371704690,1752395447840,-2874.92674675,0.00017154,2]
[371704691,1752395447850,-185.120354,0.00017183,2]
[371704692,1752395447861,-185.120354,0.00017183,2]
[371704693,1752395447872,-151.0,0.00017183,2]
[371704694,1752395447882,-151.0,0.00017183,2]
[371704695,1752395447896,-151.0,0.00017184,2]
[371704696,1752395447912,-151.0,0.00017184,2]
[371704697,1752395447922,-8063.17852122,0.0001721,2]
[371704698,1752395447933,-185.120354,0.0001726,2]
[371704699,1752395447943,-185.120354,0.0001726,2]
[371704700,1752395447953,-460.0,0.0001726,2]
[371704701,1752395447963,-151.0,0.0001726,2]
[371704702,1752395447975,-460.0,0.0001726,2]
[371704703,1752395447987,-460.0,0.0001726,2]
[371704704,1752395447998,-560.0,0.0001726,2]
[371704705,1752395448008,-171.8115677,0.0001726,2]
[371704706,1752395448018,-193.3234378,0.0001726,2]
[371704707,1752395448028,-391.070398,0.0001726,2]
[371704708,1752395448038,-391.070398,0.0001726,2]
[371704709,1752395448048,-460.0,0.0001726,2]
[371704710,1752395448058,-460.0,0.0001726,2]
[371704711,1752395448068,-460.0,0.0001726,2]
[371704712,1752395448078,-151.0,0.0001726,2]
[371704713,1752395448088,-151.0,0.0001726,2]
[371704714,1752395448098,-460.0,0.0001726,2]
[371704715,1752395448108,-489.24275503,0.0001726,2]
[371704716,1752395448118,-460.0,0.0001726,2]
[371704717,1752395448128,-460.0,0.0001726,2]
[371704718,1752395448138,-460.0,0.0001726,2]
[371704719,1752395448148,-586.40292969,0.0001726,2]
[371704720,1752395448158,-460.0,0.0001726,2]
[371704721,1752395448168,-460.0,0.0001726,2]
[371704722,1752395448179,-460.0,0.0001726,2]
[371704723,1752395448188,-460.0,0.0001726,2]
[371704724,1752395448198,-460.0,0.0001726,2]
[371704725,1752395448208,-366.57688416,0.0001726,2]
[371704726,1752395448218,-460.0,0.0001726,2]
[371704727,1752395448227,-460.0,0.0001726,2]
[371704728,1752395448237,-460.0,0.0001726,2]
[371704729,1752395448247,-460.0,0.0001726,2]
[371704730,1752395448257,-491.49,0.0001726,2]
[371704731,1752395448266,-460.0,0.0001726,2]
[371704732,1752395448277,-460.0,0.0001726,2]
[371704733,1752395448286,-252.17,0.0001726,2]
[371704734,1752395448296,-460.0,0.0001726,2]
[371704735,1752395448306,-232.38,0.0001726,2]
[371704736,1752395448316,-460.0,0.0001726,2]
[371704737,1752395448326,-460.0,0.0001726,2]
[371704738,1752395448335,-460.0,0.0001726,2]
[371704739,1752395448345,-460.0,0.0001726,2]
[371704740,1752395448355,-460.0,0.0001726,2]
[371704741,1752395448365,-190.84,0.0001726,2]
[371704742,1752395448375,-460.0,0.0001726,2]
[371704743,1752395448385,-460.0,0.0001726,2]
[371704744,1752395448394,-460.0,0.0001726,2]
[371704745,1752395448405,-460.0,0.0001726,2]
[371704746,1752395448415,-550.9,0.0001726,2]
[371704747,1752395448425,-184.72,0.0001726,2]
[371704748,1752395448434,-460.0,0.0001726,2]
[371704749,1752395448445,-451.24,0.0001726,2]
[371704750,1752395448455,-469.83,0.0001726,2]
[371704751,1752395448465,-460.0,0.0001726,2]
[371704752,1752395448474,-460.0,0.0001726,2]
[371704753,1752395448484,-510.43,0.0001726,2]
[371704754,1752395448496,-1834.23,0.0001726,2]
[371704755,1752395448506,-549.51,0.0001726,2]
[371704756,1752395448515,-460.0,0.0001726,2]
[371704757,1752395448524,-365.16,0.0001726,2]
[371704758,1752395448534,-460.0,0.0001726,2]
[371704759,1752395448545,-2012.8,0.0001726,2]
[371704760,1752395448554,-460.0,0.0001726,2]
[371704761,1752395448564,-460.0,0.0001726,2]
[371704762,1752395448575,-460.0,0.0001726,2]
[371704763,1752395448585,-600.18,0.0001726,2]
[371704764,1752395448595,-460.0,0.0001726,2]
[371704765,1752395448605,-606.6,0.0001726,2]
[371704766,1752395448614,-460.0,0.0001726,2]
[371704767,1752395448624,-460.0,0.0001726,2]
[371704768,1752395448634,-792.28,0.0001726,2]
[371704769,1752395448643,-1429.18,0.0001726,2]
[371704770,1752395448653,-460.0,0.0001726,2]
[371704771,1752395448663,-1422.74,0.0001726,2]
[371704772,1752395448672,-183.03,0.0001726,2]
[371704773,1752395448682,-3939.41,0.0001726,2]
[371704774,1752395448692,-517.47,0.0001726,2]
[371704775,1752395448704,-460.0,0.0001726,2]
[371704776,1752395448715,-567.8,0.0001726,2]
[371704777,1752395448726,-460.0,0.0001726,2]
[371704778,1752395448737,-1190.47,0.0001726,2]
[371704779,1752395448746,-397.88,0.0001726,2]
[371704780,1752395448759,-253.7,0.0001726,2]
[371704781,1752395448768,-536.06,0.0001726,2]
[371704782,1752395448777,-735.13,0.0001726,2]
[371704783,1752395448787,-927.31,0.0001726,2]
[371704784,1752395448796,-1547.79,0.0001726,2]
[371704785,1752395448805,-460.0,0.0001726,2]
[371704786,1752395448814,-907.51,0.0001726,2]
[371704787,1752395448823,-460.0,0.0001726,2]
[371704788,1752395448832,-529.16,0.0001726,2]
[371704789,1752395448841,-460.0,0.0001726,2]
[371704790,1752395448850,-460.0,0.0001726,2]
[371704791,1752395448860,-3615.51,0.0001726,2]
[371704792,1752395448869,-2635.83,0.0001726,2]
[371704793,1752395448877,-3553.96,0.0001726,2]
[371704794,1752395448886,-624.12,0.0001726,2]
[371704795,1752395448893,-460.0,0.0001726,2]
[371704796,1752395448902,-1179.8,0.0001726,2]
[371704797,1752395448911,-460.0,0.0001726,2]
[371704798,1752395448922,-460.0,0.0001726,2]
[371704799,1752395448932,-1700.57,0.0001726,2]
[371704800,1752395448942,-2189.03,0.0001726,2]
[371704801,1752395448951,-460.0,0.0001726,2]
[371704802,1752395448960,-460.0,0.0001726,2]
[371704803,1752395448970,-1056.17,0.0001726,2]
[371704804,1752395448980,-682.72,0.0001726,2]
[371704805,1752395448989,-460.0,0.0001726,2]
[371704806,1752395448999,-707.94,0.0001726,2]
[371704807,1752395449010,-593.59,0.0001726,2]
[371704808,1752395449020,-460.0,0.0001726,2]
[371704809,1752395449029,-460.0,0.0001726,2]
[371704810,1752395449039,-263.97524189,0.00017321,2]
[371704811,1752395449049,-1000.0,0.00017321,2]
[371704812,1752395449059,-151.0,0.00017358,2]
[371704813,1752395449068,-151.0,0.00017358,2]
[371704814,1752395449078,-8063.17852122,0.00017521,2]
[371704815,1752395449088,-185.120354,0.00017534,2]
[371704816,1752395449097,-185.120354,0.00017534,2]
[371704817,1752395449107,-460.0,0.00017534,2]
[371704818,1752395449117,-151.0,0.00017534,2]
[371704819,1752395449127,-460.0,0.00017534,2]
[371704820,1752395449137,-391.070398,0.00017534,2]
[371704821,1752395449156,-391.070398,0.00017534,2]
[371704822,1752395449166,-460.0,0.00017534,2]
[371704823,1752395449176,-460.0,0.00017534,2]
[371704824,1752395449186,-460.0,0.00017534,2]
[371704825,1752395449196,-151.0,0.00017534,2]
[371704826,1752395449207,-151.0,0.00017534,2]
[371704827,1752395449217,-460.0,0.00017534,2]
[371704828,1752395449227,-552.93,0.00017534,2]
[371704829,1752395449237,-460.0,0.00017534,2]
[371704830,1752395449247,-460.0,0.00017534,2]
[371704831,1752395449258,-460.0,0.00017534,2]
[371704832,1752395449268,-460.0,0.00017534,2]
[371704833,1752395449278,-460.0,0.00017534,2]
[371704834,1752395449288,-460.0,0.00017534,2]
[371704835,1752395449298,-460.0,0.00017534,2]
[371704836,1752395449308,-543.0,0.00017534,2]
[371704837,1752395449318,-460.0,0.00017534,2]
[371704838,1752395449328,-460.0,0.00017534,2]
[371704839,1752395449338,-460.0,0.00017534,2]
[371704840,1752395449349,-460.0,0.00017534,2]
[371704841,1752395449359,-460.0,0.00017534,2]
[371704842,1752395449368,-258.86,0.00017534,2]
[371704843,1752395449378,-290.33,0.00017534,2]
[371704844,1752395449388,-588.8,0.00017534,2]
[371704845,1752395449397,-460.0,0.00017534,2]
[371704846,1752395449408,-460.0,0.00017534,2]
[371704847,1752395449418,-550.9,0.00017534,2]
[371704848,1752395449428,-460.0,0.00017534,2]
[371704849,1752395449438,-469.83,0.00017534,2]
[371704850,1752395449448,-470.57,0.00017534,2]
[371704851,1752395449458,-460.0,0.00017534,2]
[371704852,1752395449469,-510.43,0.00017534,2]
[371704853,1752395449479,-1834.23,0.00017534,2]
[371704854,1752395449490,-549.51,0.00017534,2]
[371704855,1752395449503,-460.0,0.00017534,2]
[371704856,1752395449513,-460.0,0.00017534,2]
[371704857,1752395449523,-2012.8,0.00017534,2]
[371704858,1752395449534,-460.0,0.00017534,2]
[371704859,1752395449546,-460.0,0.00017534,2]
[371704860,1752395449555,-460.0,0.00017534,2]
[371704861,1752395449565,-600.18,0.00017534,2]
[371704862,1752395449579,-460.0,0.00017534,2]
[371704863,1752395449589,-606.6,0.00017534,2]
[371704864,1752395449600,-460.0,0.00017534,2]
[371704865,1752395449610,-460.0,0.00017534,2]
[371704866,1752395449621,-792.28,0.00017534,2]
[371704867,1752395449631,-1429.18,0.00017534,2]
[371704868,1752395449642,-1422.74,0.00017534,2]
[371704869,1752395449652,-3939.41,0.00017534,2]
[371704870,1752395449662,-460.0,0.00017534,2]
[371704871,1752395449672,-567.8,0.00017534,2]
[371704872,1752395449683,-460.0,0.00017534,2]
[371704873,1752395449692,-1190.47,0.00017534,2]
[371704874,1752395449702,-735.13,0.00017534,2]
[371704875,1752395449711,-927.31,0.00017534,2]
[371704876,1752395449721,-1547.79,0.00017534,2]
[371704877,1752395449731,-460.0,0.00017534,2]
[371704878,1752395449741,-907.51,0.00017534,2]
[371704879,1752395449750,-460.0,0.00017534,2]
[371704880,1752395449760,-529.16,0.00017534,2]
[371704881,1752395449770,-460.0,0.00017534,2]
[371704882,1752395449780,-460.0,0.00017534,2]
[371704883,1752395449791,-3615.51,0.00017534,2]
[371704884,1752395449801,-2635.83,0.00017534,2]
[371704885,1752395449810,-3553.96,0.00017534,2]
[371704886,1752395449820,-624.12,0.00017534,2]
[371704887,1752395449830,-460.0,0.00017534,2]
[371704888,1752395449839,-1179.8,0.00017534,2]
[371704889,1752395449849,-460.0,0.00017534,2]
[371704890,1752395449859,-460.0,0.00017534,2]
[371704891,1752395449967,-1700.57,0.00017534,2]
[371704892,1752395449977,-2189.03,0.00017534,2]
[371704893,1752395449987,-460.0,0.00017534,2]
[371704894,1752395449997,-1056.17,0.00017534,2]
[371704895,1752395450006,-682.72,0.00017534,2]
[371704896,1752395450016,-460.0,0.00017534,2]
[371704897,1752395450026,-707.94,0.00017534,2]
[371704898,1752395450035,-460.0,0.00017534,2]
[371704899,1752395450045,-460.0,0.00017534,2]
[371704900,1752395450055,-441.5174371,0.00017636,2]
[371704901,1752395450064,-1700.0,0.00017776,2]
[371704902,1752395450074,-2874.92674675,0.00017795,2]
[371704903,1752395450083,-2673.94,0.00017798,3]
[371704904,1752395450093,-1336.98,0.00017798,3]
[371704905,1752395450102,-668.48,0.00017798,3]
[371704906,1752395450112,-334.24,0.00017798,3]
[371704907,1752395450121,-483.62,0.00017798,3]
[371704908,1752395450131,-460.0,0.00017808,2]
[371704909,1752395450140,-460.0,0.00017808,2]
[371704910,1752395450151,-151.0,0.00017808,2]
[371704911,1752395450160,-391.070398,0.00017808,2]
[371704912,1752395450169,-391.070398,0.00017808,2]
[371704913,1752395450180,-460.0,0.00017808,2]
[371704914,1752395450190,-460.0,0.00017808,2]
[371704915,1752395450200,-151.0,0.00017808,2]
[371704916,1752395450209,-465.14993079,0.00017808,2]
[371704917,1752395450219,-460.0,0.00017808,2]
[371704918,1752395450229,-460.0,0.00017808,2]
[371704919,1752395450239,-460.0,0.00017808,2]
[371704920,1752395450249,-460.0,0.00017808,2]
[371704921,1752395450259,-408.03,0.00017808,2]
[371704922,1752395450269,-256.78216705,0.00017808,2]
[371704923,1752395450279,-183.33,0.00017808,2]
[371704924,1752395450289,-460.0,0.00017808,2]
[371704925,1752395450298,-436.42,0.00017808,2]
[371704926,1752395450308,-221.96,0.00017808,2]
[371704927,1752395450317,-459.24231215,0.00017808,2]
[371704928,1752395450327,-460.0,0.00017808,2]
[371704929,1752395450337,-460.0,0.00017808,2]
[371704930,1752395450347,-550.9,0.00017808,2]
[371704931,1752395450356,-460.0,0.00017808,2]
[371704932,1752395450366,-469.83,0.00017808,2]
[371704933,1752395450375,-460.0,0.00017808,2]
[371704934,1752395450385,-510.43,0.00017808,2]
[371704935,1752395450395,-1834.23,0.00017808,2]
[371704936,1752395450404,-549.51,0.00017808,2]
[371704937,1752395450414,-460.0,0.00017808,2]
[371704938,1752395450423,-460.0,0.00017808,2]
[371704939,1752395450434,-2012.8,0.00017808,2]
[371704940,1752395450443,-460.0,0.00017808,2]
[371704941,1752395450453,-460.0,0.00017808,2]
[371704942,1752395450462,-460.0,0.00017808,2]
[371704943,1752395450472,-600.18,0.00017808,2]
[371704944,1752395450482,-460.0,0.00017808,2]
[371704945,1752395450491,-606.6,0.00017808,2]
[371704946,1752395450504,-460.0,0.00017808,2]
[371704947,1752395450514,-460.0,0.00017808,2]
[371704948,1752395450524,-792.28,0.00017808,2]
[371704949,1752395450535,-1429.18,0.00017808,2]
[371704950,1752395450544,-1422.74,0.00017808,2]
[371704951,1752395450554,-3939.41,0.00017808,2]
[371704952,1752395450563,-460.0,0.00017808,2]
[371704953,1752395450573,-567.8,0.00017808,2]
[371704954,1752395450582,-460.0,0.00017808,2]
[371704955,1752395450592,-1190.47,0.00017808,2]
[371704956,1752395450602,-735.13,0.00017808,2]
[371704957,1752395450611,-927.31,0.00017808,2]
[371704958,1752395450620,-1547.79,0.00017808,2]
[371704959,1752395450629,-460.0,0.00017808,2]
[371704960,1752395450639,-907.51,0.00017808,2]
[371704961,1752395450649,-460.0,0.00017808,2]
[371704962,1752395450659,-529.16,0.00017808,2]
[371704963,1752395450669,-460.0,0.00017808,2]
[371704964,1752395450678,-281.19887932,0.00017808,2]
[371704965,1752395450687,-3615.51,0.00017808,2]
[371704966,1752395450697,-2635.83,0.00017808,2]
[371704967,1752395450707,-3553.96,0.00017808,2]
[371704968,1752395450716,-624.12,0.00017808,2]
[371704969,1752395450726,-460.0,0.00017808,2]
[371704970,1752395450735,-1179.8,0.00017808,2]
[371704971,1752395450745,-277.84,0.00017808,2]
[371704972,1752395450754,-460.0,0.00017808,2]
[371704973,1752395450764,-1700.57,0.00017808,2]
[371704974,1752395450774,-2189.03,0.00017808,2]
[371704975,1752395450783,-460.0,0.00017808,2]
[371704976,1752395450793,-1056.17,0.00017808,2]
[371704977,1752395450802,-682.72,0.00017808,2]
[371704978,1752395450812,-460.0,0.00017808,2]
[371704979,1752395450821,-707.94,0.00017808,2]
[371704980,1752395450831,-460.0,0.00017808,2]
[371704981,1752395450840,-8063.17852122,0.00017831,2]
[371704982,1752395450850,-215.42595214,0.00017857,2]
[371704983,1752395450860,-160.0,0.00017857,2]
[371704984,1752395450869,-160.0,0.00017857,2]
[371704985,1752395450879,-160.0,0.00017857,2]
[371704986,1752395450888,-230.68503973,0.00017857,2]
[371704987,1752395450898,-12598.31844336,0.00017857,2]
[371704988,1752395450908,-214.29528141,0.00017857,2]
[371704989,1752395450918,-838.53376533,0.00017857,2]
[371704990,1752395450927,-160.0,0.00017857,2]
[371704991,1752395450937,-160.0,0.00017859,2]
[371704992,1752395450947,-1500.0,0.00017868,2]
[371704993,1752395450956,-420.0,0.00017952,2]
[371704994,1752395450966,-53597.11129043,0.00018,2]
[371704995,1752395450978,-499.999999,0.00018,2]
[371704996,1752395450988,-160.0,0.00018058,2]
[371704997,1752395450998,-185.120354,0.00018082,2]
[371704998,1752395451008,-185.120354,0.00018082,2]
[371704999,1752395451017,-151.0,0.00018082,2]
[371705000,1752395451027,-460.0,0.00018082,2]
[371705001,1752395451036,-196.869455,0.00018082,2]
[371705002,1752395451046,-460.0,0.00018082,2]
[371705003,1752395451056,-460.0,0.00018082,2]
[371705004,1752395451066,-460.0,0.00018082,2]